Cogmind - Beta 9.3 *** ADVENTURER MODE // 2020.01.03 @ 20:44:18 Player: DanielJ Result: Destroyed by Y-45 Defender with Beam Rifle Performance ------------- Evolutions (1) 500 Regions Visited (3) 600 Robots Destroyed (5) 25 Value Destroyed (194) 194 Prototype IDs (2) 40 Alien Tech Used (0) 0 Bonus (0) 0 TOTAL SCORE: 1359 Bonus ------- None Cogmind --------- Core Integrity 0/400 Matter 196/300 Energy 245/250 System Corruption 0% Temperature Cool (9) Movement Treading (160) Location -9/Storage Parts ------- > --- POWER (1) -------- Ion Engine > --- PROPULSION (4) --- Light Treads Light Treads > --- UTILITY (2) ------ Small Storage Unit Visual Processing Unit > --- WEAPON (2) ------- Improved EM Shotgun > --- INVENTORY (6) ---- Cooling System Flail Peak State ------------ > --- POWER ------------ Ion Engine > --- PROPULSION ------- Light Treads > --- UTILITY ---------- Small Storage Unit Visual Processing Unit > --- WEAPON ----------- Improved EM Shotgun Heavy Assault Rifle > --- INVENTORY -------- Cooling System Flail [Rating: 10] Favorites ----------- Power Ion Engine Engine Ion Engine Propulsion Wheel Treads Light Treads Wheel Wheel Utility Small Storage Unit Storage Small Storage Unit Processor Visual Processing Unit Weapon Improved EM Shotgun Energy Gun Improved EM Shotgun Ballistic Gun Light Assault Rifle Impact Weapon Flail Build | -11 -10 -9 -9 ------- Run | Scr Mat Mat Sto Slots Evolved 2 | . . 2 . Power . | . . . . Propulsion 2 | . . 2 . Utility . | . . . . Weapon . | . . . . Parts Attached 17 | 9 . 2 6 Power 2 | 1 . . 1 Engine 2 | 1 . . 1 Core . | . . . . Reactor . | . . . . Propulsion 6 | 4 . . 2 Treads 4 | 2 . . 2 Leg . | . . . . Wheel 2 | 2 . . . Hover . | . . . . Flight . | . . . . Utility 2 | 1 . . 1 Device . | . . . . Storage 1 | 1 . . . Processor 1 | . . . 1 Hackware . | . . . . Protection . | . . . . Artifact . | . . . . Weapon 7 | 3 . 2 2 Energy Gun 4 | 2 . 1 1 Energy Cannon . | . . . . Ballistic Gun 2 | 1 . . 1 Ballistic Cannon . | . . . . Launcher . | . . . . Special Weapon . | . . . . Impact Weapon 1 | . . 1 . Slashing Weapon . | . . . . Piercing Weapon . | . . . . Special Melee Weapon . | . . . . Unidentified Prototypes 2 | . . 1 1 Parts Lost 7 | . 5 1 1 Power 1 | . 1 . . Propulsion 2 | . 2 . . Utility . | . . . . Weapon 4 | . 2 1 1 Highest Loss Streak 5 | . 5 1 1 Average Slot Usage (%) 39 | . 72 17 36 Engine 4 | . 12 . 2 Wheel 5 | . 23 . . Storage 11 | . 14 11 11 Processor 4 | . . . 9 Energy Gun 8 | . 11 4 9 Ballistic Gun 2 | . 9 . 1 Impact Weapon 1 | . . 2 1 Naked Turns . | . . . . Heaviest Build 15 | 12 12 7 15 Greatest Support 40 | 40 20 3 40 Greatest Overweight (x) 4 | . 1 2 4 Average Overweight (x) . | . . 1 1 Largest Inventory Capacity 6 | 6 6 6 6 Average Capacity 5 | 4 6 6 6 Most Carried 3 | 2 1 1 3 Average Carried 1 | . 1 1 2 Final Capacity 6 | 6 6 6 6 Final Carried 2 | 1 1 1 2 Class Distribution -------------------- 100% | Mutant Dominant Class ---------------- Mutant | -10/Materials Mutant | -9/Materials Mutant | -9/Storage Resources | -11 -10 -9 -9 ----------- Run | Scr Mat Mat Sto Matter Collected 243 | 162 . . 81 Remotely . | . . . . Salvage Created 242 | . 36 90 116 Parts 5 | . . . 5 Haulers Intercepted . | . . . . Recyclers Shooed . | . . . . Parts Field Recycled . | . . . . Retrieved Matter . | . . . . Parts Self-Destructed . | . . . . Prevented . | . . . . Kills | -11 -10 -9 -9 ------- Run | Scr Mat Mat Sto Combat Hostiles Destroyed 4 | . 1 2 1 Guns 1 | . 1 . . AOE 1 | . . . 1 Classes Destroyed 3 | . 1 1 1 Recycler 1 | . . . 1 Grunt 2 | . 1 1 . Sentry 2 | . . 1 1 Best Kill Streak 2 | . 1 2 2 Combat Bots Only 2 | . 1 2 1 Max Kills in Single Turn 1 | . 1 1 1 Gunslinging . | . . . . Exploded 1 | . . . 1 Melee . | . . . . Uniques/NPCs Destroyed . | . . . . Combat | -11 -10 -9 -9 -------- Run | Scr Mat Mat Sto Damage Taken 1063 | . 407 419 237 Core 514 | . 106 295 113 Absorbed by Shields . | . . . . Core Remaining (%) 78 | 100 57 . . Volleys Fired 30 | . 12 12 6 Largest 2 | . 2 1 2 Hottest 68 | . 60 56 68 Shots Fired 38 | . 18 12 8 Gun 38 | . 18 12 8 Cannon . | . . . . Launcher . | . . . . Special . | . . . . Kinetic 8 | . 6 . 2 Thermal 12 | . . 12 . Explosive . | . . . . Electromagnetic 18 | . 12 . 6 Robot Hit Streak 19 | . 4 11 19 Robot Miss Streak 1 | . 1 1 1 Penetration Max . | . . . . Secondary Targets 1 | . . . 1 Max Gunslinging Chain 1 | . . . 1 Shots Hit Robots 38 | . 14 17 7 Core Hits 9 | . 2 1 6 Critical Hits . | . . . . Critical Kills . | . . . . Critical Parts Destroyed . | . . . . Melee Attacks 8 | . . 7 1 Impact 8 | . . 7 1 Slashing . | . . . . Piercing . | . . . . Sneak Attacks . | . . . . Combat Hostiles . | . . . . Follow-up Attacks . | . . . . Damage Inflicted 684 | . 153 342 189 Guns 499 | . 153 204 142 Cannons . | . . . . Explosions 47 | . . . 47 Melee 138 | . . 138 . Ramming . | . . . . Kinetic 61 | . 30 . 31 Thermal 251 | . . 204 47 Explosive . | . . . . Electromagnetic 234 | . 123 . 111 Impact 138 | . . 138 . Slashing . | . . . . Piercing . | . . . . Highest Corruption . | . . . . Average Corruption . | . . . . Corruption Purged . | . . . . Overload Shots . | . . . . Overflow Damage 33 | . . 33 . Projectiles . | . . . . Explosions . | . . . . Melee 33 | . . 33 . Knockbacks . | . . . . Impact . | . . . . Kinetic . | . . . . Secondary . | . . . . Self-Inflicted Damage 36 | . . . 36 Shots 2 | . . . 2 Rammed . | . . . . Targets Rammed . | . . . . Kicked . | . . . . Crushed . | . . . . Highest Temperature 271 | . 271 114 25 Average Temperature 97 | . 159 45 11 Received Heat Transfer 633 | . 297 255 81 Siege Activations . | . . . . Robots Corrupted . | . . . . Combat Hostiles . | . . . . Parts Fried 2 | . 1 1 . Impact Corruptions 4 | . . 4 . Robots Melted . | . . . . Combat Hostiles . | . . . . Parts Melted . | . . . . Heat Transferred 494 | . . 444 50 Parts Sabotaged . | . . . . Parts Stolen . | . . . . Parts Stripped . | . . . . Power Chain Reactions 1 | . . . 1 Missiles Intercepted . | . . . . Alert | -11 -10 -9 -9 ------- Run | Scr Mat Mat Sto Peak Influence 60 | . 20 60 38 Average Influence 12 | . 2 15 19 Maximum Alert Level . | . . . . Low Security (%) 100 | 100 100 100 100 Level 1 . | . . . . Level 2 . | . . . . Level 3 . | . . . . Level 4 . | . . . . Level 5 . | . . . . High Security . | . . . . Max Security . | . . . . Squads Dispatched 4 | . . 1 3 Investigation . | . . . . Extermination . | . . . . Reinforcement 4 | . . 1 3 Assault . | . . . . Garrison . | . . . . Intercept . | . . . . Construction Impeded . | . . . . Haulers Reinforced . | . . . . Stealth | -11 -10 -9 -9 --------- Run | Scr Mat Mat Sto Distress Signals 3 | . . . 3 Communications Jammed . | . . . . Distress Signals . | . . . . Times Spotted 13 | . 5 6 2 Peak Tracking Total 4 | . 4 4 2 Tactical Retreats . | . . . . Traps | -11 -10 -9 -9 ------- Run | Scr Mat Mat Sto Traps Triggered . | . . . . Indirectly . | . . . . Trap Hack Attempts . | . . . . Triggered . | . . . . Disarmed . | . . . . Reprogrammed . | . . . . Reused . | . . . . Traps Extracted . | . . . . Installed . | . . . . Triggered . | . . . . Machines | -11 -10 -9 -9 ---------- Run | Scr Mat Mat Sto Machines Disabled 3 | . . . 3 Max in Single Turn 2 | . . . 2 Machines Sabotaged . | . . . . Garrisons Compromised . | . . . . Overloaded Fab Kills . | . . . . Fab Network Shutdowns . | . . . . Hacking | -11 -10 -9 -9 --------- Run | Scr Mat Mat Sto Machines Accessed 1 | . . . 1 Terminals 1 | . . . 1 Fabricators . | . . . . Repair Stations . | . . . . Recycling Units . | . . . . Scanalyzers . | . . . . Garrison Access . | . . . . Total Hacks 1 | . . . 1 Successful 1 | . . . 1 Failed . | . . . . Catastrophic . | . . . . Database Lockouts . | . . . . Manual . | . . . . Terminals 1 | . . . 1 Fabricators . | . . . . Repair Stations . | . . . . Recycling Units . | . . . . Scanalyzers . | . . . . Garrison Access . | . . . . Terminal Hacks 1 | . . . 1 Open Door 1 | . . . 1 Fabricator Hacks . | . . . . Repair Station Hacks . | . . . . Recycling Unit Hacks . | . . . . Scanalyzer . | . . . . Garrison Access Hacks . | . . . . Unauthorized Hacks . | . . . . Terminals . | . . . . Fabricators . | . . . . Repair Stations . | . . . . Recycling Units . | . . . . Scanalyzers . | . . . . Garrison Access . | . . . . Data Cores Recovered . | . . . . Used . | . . . . Hacking Detections . | . . . . Full Trace Events . | . . . . Feedback Events . | . . . . Feedback Blocked . | . . . . Robot Schematics Acquired . | . . . . Robots Built . | . . . . Matter . | . . . . Time . | . . . . Total Robot Build Rating . | . . . . Part Schematics Acquired . | . . . . Parts Built . | . . . . Matter . | . . . . Time . | . . . . Total Part Build Rating . | . . . . Parts Repaired . | . . . . Time . | . . . . Parts Recycled . | . . . . Recycled Matter . | . . . . Retrieved Matter . | . . . . Retrieved Components . | . . . . Parts Scanalyzed . | . . . . Part Schematics Acquired . | . . . . Parts Damaged . | . . . . Bothacking | -11 -10 -9 -9 ------------ Run | Scr Mat Mat Sto Used RIF Installer . | . . . . Robots Hacked . | . . . . Non-combat . | . . . . Combat . | . . . . Robot Hacks Applied . | . . . . Relay Couplers Released . | . . . . Robots Rewired . | . . . . Allies Hacked . | . . . . Hacks Repelled . | . . . . Allies | -11 -10 -9 -9 -------- Run | Scr Mat Mat Sto Total Allies . | . . . . Largest Group . | . . . . Highest-Rated Group . | . . . . Highest-Rated Ally . | . . . . Total Orders 1 | . . . 1 EXPLORE 1 | . . . 1 Ally Attacks . | . . . . Total Damage . | . . . . Kills . | . . . . Allies Corrupted . | . . . . Allies Melted . | . . . . Intel | -11 -10 -9 -9 ------- Run | Scr Mat Mat Sto Robot Analysis Total . | . . . . Derelict Logs Recovered . | . . . . Drone Launches 16 | . . . 16 Drone Recoveries . | . . . . Exploration | -11 -10 -9 -9 ------------- Run | Scr Mat Mat Sto Turns Passed 483 | 72 97 131 183 Spaces Moved 325 | 68 84 77 96 Core 179 | 5 8 77 89 Treads 10 | 3 . . 7 Legs . | . . . . Wheels 136 | 60 76 . . Hover . | . . . . Flight . | . . . . Fastest Speed 50 | 50 80 100 100 Average Speed 106 | 81 81 113 141 Slowest Speed 250 | 160 100 150 250 Overloaded Moves . | . . . . Propulsion Burnouts . | . . . . Robots Hopped . | . . . . Cave-ins Triggered . | . . . . Exploration Rate (%) 21 | 4 21 10 52 Regions Visited 3 Branch Regions 1 Pre-discovered Areas . | . . . . Known Exits Taken . | . . . . Unknown Exits Taken 3 | 1 1 1 . Scrap Searched . | . . . . Spaces Dug . | . . . . Terrain Destroyed 9 | . . . 9 Melee . | . . . . Projectile . | . . . . AOE 9 | . . . 9 Actions | -11 -10 -9 -9 --------- Run | Scr Mat Mat Sto Total 405 | 81 95 97 132 Wait . | . . . . Move 322 | 67 83 76 96 Hop . | . . . . Pick Up 3 | 2 . . 1 Fast Attach 15 | 8 . 2 5 Attach 2 | 1 . . 1 Detach 1 | . . . 1 Swap . | . . . . Drop 3 | 3 . . . Fire 30 | . 12 12 6 Melee 8 | . . 7 1 Ram . | . . . . Kick . | . . . . Crush . | . . . . Escape Stasis 13 | . . . 13 Rewire . | . . . . Trap . | . . . . Miscellaneous 8 | . . . 8 Route ------- -11/Scrapyard -10/Materials -9/Materials -9/Storage History --------- Turn | Location | Event 3 | -11/Scrapyard | Discovered new exit (range 15) 73 | -11/Scrapyard | Entered Materials 121 | -10/Materials | Discovered new exit (range 11) 170 | -10/Materials | Entered another Materials area 170 | -9/Materials | Evolved 2 slots: Propulsion x2 194 | -9/Materials | Lost 5 parts (1p2n2w) 240 | -9/Materials | Discovered new exit (range 10) 284 | -9/Materials | Core integrity fell below 50% 301 | -9/Materials | Entered Storage 313 | -9/Storage | Build established: Mutant 449 | -9/Storage | Core integrity fell below 20% 484 | -9/Storage | Destroyed by Y-45 Defender with Beam Rifle Last Messages --------------- 00461_ U-05 Engineer lays Concrete. 00462_ Acquired Lgt. Treads. 00463_ U-05 Engineer lays Concrete. 00464_ R-06 Scavenger collects Lgt. Treads. 00465_ U-05 Engineer lays Concrete. 00469_ R-06 Scavenger destroyed. 00469_ Switching to secondary target: Y-45 Defender. 00469_ Door malfunctions. 00469_ U-05 Engineer lays Concrete. 00470_ W-16 Scout distress signal alerts nearby ally. 00470_ Drone destroyed. 00471_ U-05 Engineer lays Concrete. 00476_ Hvy. Assault Rifle destroyed. 00476_ Acquired Lgt. Treads. 00477_ U-05 Engineer lays Concrete. 00478_ K-01 Serf collects debris. 00478_ U-05 Engineer lays Concrete. 00480_ Drone destroyed. 00481_ U-05 Engineer lays Concrete. 00484_ U-05 Engineer repairs door. Map ----- +----------------------------------------------------+ | ???????# """" ## ## "??" #????????????????? | | ???????# """" ## """ ## "??" #????????????????? | | ???????# """" ## """ T# "??" #????????????????? | | ???????# """" ## """ ## "??" % #????????????????? | | ???????# ## ## """" #????????????????? | | ???????" """" ## """ ## n #????????????????? | | ??????G """" ## """ ########/###????????????????? | | ??????""????? ?# """ #??????# #??????????????????? | | ???????????????# #??????# #??????????????????? | | ??#####????????# #??????# #??????????????????? | | ??#! !#????????#######?####?# #??????????????????? | | ??#! !#????????????????# T## ####???????????????? | | ??#! !#????????????????# + #???????????????? | | ??#! !#????????????????# #k #???????????????? | | ?### ##????????????????# #u #???????????????? | | ?#T #????????????????# ## #???????????????? | | ?###+###???????????????####?# #???????????????? | | ?# ###################### ########????????? | | ?# ^ # #????????? | | ?# T ##### # #????????? | | ?# u#???# # #????????? | | ?# ##################/###### + #????????? | | ?## ##########?????# %""" ## # #????????? | | ??# # #?????# = Y" ## # #????????? | | ??# # #?????# ## ########????????? | | ??# # #?????# @ # #???????????????? | | ??# + #?????# # ###########?????? | | ??# # "" """ #?????# # + #?????? | | ??# # " ] !" #?????# u # # """ #?????? | | ??# # " !!!" #?????# # # """ #?????? | | ??# # """""" #?????#= Y + + """ #?????? | | ??# # #?????### ### # #?????? | | ??##############????######### # #?????? | | ????????????????????# / T ########?????? | | ????????????????????# "T" # #####????????????? | | ???????????????????# #####????????????????? | | ???????????????????##########????????????????????? | | ?????????????????????????????????????????????????? | | | | | | | | | | | | | | | | | | | | | | | | | +----------------------------------------------------+ Best States ------------- Heat Dissipation 28 Energy Generation 10 Energy Capacity 250 Matter Stores 217 Matter Capacity 300 Sight Range 18 Terrain Scan Density 10 Resistance: KI 20 Resistance: TH 20 Resistance: EX 20 Resistance: EM 20 Resistance: I 20 Resistance: S 20 Resistance: P 20 Evasion (%) 44 Recoil Reduction 2 Offensive Hacking 10 Item Schematics ----------------- None Robot Schematics ------------------ None Fabricated ------------ Nothing Alien Tech Used ----------------- None Achievements -------------- None Challenges ------------ None Game ------ Seed EnhancedDiametricMinigun Manual? 0 Play Time 00:07:31 Cumulative 122.3 hours Start 2020.01.03 @ 20:37:50 End 2020.01.03 @ 20:44:18 Sessions 1 Manual Loads 0 Difficulty Adventurer Special Mode None Game No. 25 Rogue 0 Adventurer 25 Explorer 0 Win Type - Total 1 Types 1/0/0/0/0/0/0 Lore% 32 Gallery% 48 Achievement% 47 Wizard Run 0 Options --------- ASCII 0 Keyboard 0 Movement Mouse Keybinds 0 Fullscreen 2 Font 24/Proggy Map View 76x50 Tactical HUD 1 Map Filters NONE Filters NONE Steam 1 RUN: 6e0687ea-fe59-45fc-8eca-8fe947345754